bitfinex-derivatives/quotes_SOLF0:USTF0_20241025
["timestamp","ask_amount","ask_price","bid_price","bid_amount"]
[1729870417515,2.855,175.19,175.16,2.8554]
[1729870418816,16.56989227,175.2,175.16,2.8554]
[1729870420510,16.56989227,175.2,175.15,3.7214]
[1729870420511,13.71509227,175.2,175.15,2.4276]
[1729870420822,4.7,175.22,175.09,1.2845]
[1729870420823,13.71509227,175.18,175.09,1.2845]
[1729870421019,13.71509227,175.18,175.09,5.9845]
[1729870421220,18.41509227,175.18,175.09,5.9845]
[1729870421418,2.8556,175.16,175.12,2.856]
[1729870421617,2.8556,175.16,175.09,5.9845]
[1729870422016,2.8554,175.17,175.09,5.9845]
[1729870422219,4.7,175.18,175.09,19.69959227]
[1729870422417,4.7,175.21,175.11,13.71509227]
[1729870422816,2.855,175.19,175.15,2.8555]
[1729870423522,18.41509227,175.21,175.11,13.71509227]
[1729870423717,13.71509227,175.18,175.09,19.69959227]
[1729870423922,13.71509227,175.18,175.09,5.9845]
[1729870424622,5.7077,175.27,175.09,1.2845]
[1729870424623,13.71509227,175.16,175.09,1.2845]
[1729870424920,4.7,175.17,175.08,1.1727]
[1729870424921,13.71509227,175.13,175.08,1.1727]
[1729870425122,4.7,175.17,175.06,5.8988]
[1729870425123,13.71509227,175.11,175.06,1.1988]
[1729870425516,16.57149227,175.11,175.07,2.8568]
[1729870426111,4.7,175.17,175.08,2.8567]
[1729870426112,2.8562,175.12,175.08,2.8567]
[1729870426316,13.71509227,175.16,175.07,1.2926]
[1729870426716,2.8559,175.14,175.1,2.8563]
[1729870426914,13.71509227,175.16,175.1,2.8563]
[1729870427120,13.71509227,175.16,175.07,2.5437]
[1729870427121,18.41509227,175.16,175.07,2.5437]
[1729870428219,2.8561,175.13,175.09,2.8565]
[1729870431521,2.8562,175.12,175.07,2.5437]
[1729870431822,13.71509227,175.14,175.07,1.2926]
[1729870432027,2.8564,175.11,175.07,1.2926]
[1729870432223,13.71509227,175.12,175.07,1.2926]
[1729870432620,2.8566,175.1,175.07,1.2926]
[1729870432816,2.8566,175.1,175.07,4.1495]
[1729870433018,18.41509227,175.12,175.02,4.7]
[1729870433224,2.8568,175.08,175.02,4.7]
[1729870433528,18.41509227,175.12,175.01,2.3679]
[1729870433923,0.1312,175.19,175.09,2.8565]
[1729870433924,4.7,175.14,175.09,2.8565]
[1729870434330,2.856,175.13,175.09,2.8565]
[1729870434524,2.856,175.13,175.07,2.8569]
[1729870434726,2.856,175.13,175.05,13.71509227]
[1729870435426,2.856,175.13,175.07,2.8569]
[1729870435722,2.856,175.13,175.05,13.71509227]
[1729870436032,2.8557,175.15,175.07,13.71509227]
[1729870436230,2.8557,175.15,175.11,2.8562]
[1729870436435,2.8556,175.16,175.08,2.5752]
[1729870436636,2.8556,175.16,175.09,1.2158]
[1729870436831,2.8556,175.16,175.12,2.856]
[1729870437428,13.71509227,175.13,175.05,4.7]
[1729870437628,13.71509227,175.11,175.05,4.7]
[1729870438030,13.71509227,175.11,175.03,3.791]
[1729870438531,2.8565,175.1,175.06,2.857]
[1729870439034,13.71509227,175.13,175.03,17.50609227]
[1729870439236,13.71509227,175.18,175.05,13.71509227]
[1729870439425,13.71509227,175.18,175.06,4.7]
[1729870439630,4.7,175.17,175.06,4.7]
[1729870440323,4.7,175.18,175.07,13.71509227]
[1729870440730,2.8554,175.17,175.13,2.8558]
[1729870441623,2.8555,175.16,175.13,2.8558]
[1729870442638,2.8559,175.14,175.07,13.71509227]
[1729870443130,18.41509227,175.18,175.07,13.71509227]
[1729870443336,2.8556,175.15,175.07,13.71509227]
[1729870443532,18.41509227,175.18,175.07,13.71509227]
[1729870443733,2.856,175.14,175.1,2.8564]
[1729870444327,2.8563,175.11,175.08,2.8566]
[1729870444523,13.71509227,175.13,175.08,2.8566]
[1729870444928,2.8562,175.12,175.08,2.8566]
[1729870445134,2.8562,175.12,175.06,4.7]
[1729870446330,2.8562,175.12,175.08,2.8567]
[1729870446534,2.8562,175.12,175.03,3.791]
[1729870446535,13.71509227,175.11,175.04,4.7]
[1729870446729,13.71509227,175.11,175.07,2.8568]
[1729870446927,4.7,175.14,175.05,13.71509227]
[1729870447335,13.71509227,175.13,175.04,4.7]
[1729870447632,13.71509227,175.11,175.03,8.491]
[1729870447933,13.71509227,175.11,175.05,2.8572]
[1729870448132,4.7,175.14,174.95,5.7176]
[1729870448133,4.7,175.14,174.98,13.71509227]
[1729870448335,13.71509227,175.08,174.99,4.7]
[1729870448932,2.857,175.07,175.03,2.8575]
[1729870450436,4.7,175.12,175.01,21.94425071]
[1729870451330,2.8566,175.1,175.01,21.94425071]
[1729870452435,2.8566,175.1,175.06,2.857]
[1729870453037,2.8564,175.11,175.07,2.8568]
[1729870453240,26.64425071,175.14,175.04,3.6815]
[1729870454034,26.64425071,175.14,175.08,2.8567]
[1729870454035,2.8562,175.12,175.08,2.8567]
[1729870454931,2.8562,175.12,175.06,2.857]
[1729870455234,2.8562,175.12,175.04,3.6815]
[1729870455744,2.8562,175.12,175.08,2.8567]
[1729870455936,2.856,175.13,175.04,3.6815]
[1729870456133,4.7,175.16,175.04,3.6815]
[1729870456731,2.8558,175.15,175.11,2.8562]
[1729870457139,4.7,175.16,175.11,2.8562]
[1729870457737,21.94425071,175.14,175.08,2.8567]
[1729870459241,21.94425071,175.14,175.04,8.3815]
[1729870460543,4.7,175.16,175.04,8.3815]
[1729870460742,2.8559,175.14,175.1,2.8563]
[1729870462139,21.94425071,175.14,175.07,2.857]
[1729870463143,2.8566,175.1,175.07,2.857]
[1729870465545,2.8567,175.09,175.07,2.857]
[1729870465948,21.94425071,175.14,175.07,2.857]
[1729870466345,2.8565,175.1,175.07,2.857]
[1729870468846,21.94425071,175.14,175.04,3.6815]
[1729870469050,2.8562,175.12,175.04,3.6815]
[1729870469248,4.7,175.17,175.04,25.62575071]
[1729870469550,2.8558,175.14,175.11,2.8562]
[1729870469944,4.7,175.17,175.07,4.7]
[1729870470144,2.8556,175.16,175.13,2.856]
[1729870470448,4.7,175.17,175.13,2.856]
[1729870470749,2.8556,175.16,175.13,2.856]
[1729870471151,13.71820557,175.18,175.13,2.856]
[1729870471348,18.41820557,175.18,175.13,2.856]
[1729870471554,0.1312,175.2,175.1,13.71820557]
[1729870471555,18.41820557,175.2,175.1,13.71820557]
[1729870471749,2.8553,175.17,175.11,8.49]
[1729870471958,18.41820557,175.2,175.11,8.49]
[1729870473343,2.8553,175.17,175.14,2.8557]
[1729870474563,2.8551,175.19,175.13,2.8559]
[1729870474746,5.8393,175.27,175.11,8.49]
[1729870474747,4.7,175.24,175.14,13.71820557]
[1729870474948,4.7,175.24,175.15,4.7]
[1729870475146,4.7,175.24,175.17,13.71820557]
[1729870475351,13.71820557,175.27,175.18,2.5026]
[1729870475352,18.41820557,175.27,175.18,2.5026]
[1729870475556,18.41820557,175.27,175.2,2.8547]
[1729870475557,2.8543,175.24,175.2,2.8547]
[1729870476152,2.8543,175.24,175.19,2.8549]
[1729870476456,2.8543,175.24,175.18,2.5026]
[1729870476958,2.8543,175.24,175.21,2.8546]
[1729870477150,13.71820557,175.27,175.18,2.5026]
[1729870477350,13.71820557,175.27,175.19,4.7]
[1729870477551,13.71820557,175.27,175.19,5.8934]
[1729870477750,16.57200557,175.27,175.19,5.8934]
[1729870478056,61.7,175.37,175.19,19.61160557]
[1729870478258,21.91526357,175.33,175.25,2.8539]
[1729870478556,4.7,175.32,175.25,2.8539]
[1729870479253,2.8534,175.29,175.25,2.8539]
[1729870480455,4.7,175.32,175.22,2.8545]
[1729870480456,21.91526357,175.3,175.22,2.8545]
[1729870480960,2.854,175.26,175.21,2.8545]
[1729870481147,2.854,175.26,175.2,4.7]
[1729870481553,21.91526357,175.3,175.21,2.8546]
[1729870481554,2.8537,175.27,175.21,2.8546]
[1729870481753,21.91526357,175.3,175.2,4.7]
[1729870482456,21.91526357,175.33,175.2,4.7]
[1729870482649,4.7,175.32,175.2,4.7]
[1729870482849,2.8534,175.29,175.23,2.8542]
[1729870483160,2.8534,175.29,175.2,4.7]
[1729870483561,2.8534,175.29,175.24,2.854]
[1729870484357,2.8534,175.29,175.25,2.854]
[1729870488067,2.8531,175.31,175.27,2.8535]
[1729870488363,61.7,175.37,175.19,1.1934]
[1729870488364,61.7,175.37,175.24,4.7]
[1729870488572,4.7,175.36,175.25,2.4817]
[1729870488872,4.7,175.36,175.29,2.8533]
[1729870488873,2.8528,175.33,175.29,2.8533]
[1729870489062,4.7,175.36,175.26,1.2058]
[1729870489271,2.8524,175.35,175.26,1.2058]
[1729870489566,4.7,175.37,175.26,1.2058]
[1729870489770,2.8526,175.34,175.31,2.853]
[1729870490071,4.7,175.37,175.31,2.853]
[1729870490469,2.8525,175.35,175.31,2.853]
[1729870492074,2.8526,175.34,175.31,2.853]
[1729870492668,4.7,175.37,175.28,4.7]
[1729870493173,4.7,175.37,175.25,5.3356]
[1729870493174,2.8535,175.29,175.25,5.3356]
[1729870493566,21.91526357,175.32,175.25,2.4817]
[1729870493769,2.8532,175.3,175.25,4.0384]
[1729870493967,21.91526357,175.32,175.25,1.1844]
[1729870494270,21.91526357,175.32,175.26,2.8538]
[1729870494464,2.8535,175.29,175.26,2.8538]
[1729870494669,21.91526357,175.32,175.25,1.1844]
[1729870494975,21.91526357,175.32,175.26,2.8538]
[1729870494976,2.8535,175.29,175.26,2.8538]
[1729870495475,21.91526357,175.32,175.25,4.0384]
[1729870496571,2.8535,175.28,175.25,4.0384]
[1729870497576,21.91526357,175.32,175.25,1.1844]
[1729870497971,21.91526357,175.32,175.27,2.8537]
[1729870498166,21.91526357,175.32,175.25,1.1844]
[1729870498575,2.8534,175.3,175.26,2.8538]
[1729870498775,21.91526357,175.32,175.26,2.8538]
[1729870498964,2.8532,175.3,175.25,4.0384]
[1729870499169,21.91526357,175.32,175.25,4.0384]
[1729870500476,13.69927007,175.3,175.25,4.0384]
[1729870500879,2.8539,175.26,175.23,2.8542]
[1729870501080,13.69927007,175.28,175.22,4.7]
[1729870501282,13.69927007,175.26,175.2,1.2489]
[1729870501470,13.69927007,175.26,175.2,5.9489]
[1729870501668,13.69927007,175.28,175.2,5.9489]
[1729870502275,2.854,175.25,175.22,2.8544]
[1729870502579,13.69927007,175.28,175.2,5.9489]
[1729870502775,13.69927007,175.28,175.25,2.854]
[1729870502776,2.8536,175.28,175.25,2.854]
[1729870502971,13.69927007,175.31,175.2,19.64817007]
[1729870503367,2.8536,175.28,175.2,19.64817007]
[1729870503879,2.8536,175.28,175.24,2.8541]
[1729870504478,13.69927007,175.28,175.2,1.2489]
[1729870504779,2.8542,175.24,175.21,2.8546]
[1729870505571,13.69927007,175.26,175.2,1.2489]
[1729870505771,13.69927007,175.23,175.19,1.2836]
[1729870505971,13.69927007,175.23,175.16,1.287]
[1729870506172,13.69927007,175.23,175.17,2.8553]
[1729870506173,2.8547,175.21,175.17,2.8553]
[1729870506372,2.8547,175.21,175.16,1.287]
[1729870506573,13.69927007,175.23,175.16,1.287]
[1729870506869,13.69927007,175.23,175.18,2.8551]
[1729870506870,2.8547,175.22,175.18,2.8551]
[1729870508784,13.69927007,175.21,175.14,4.7]
[1729870509281,2.8549,175.2,175.16,2.8554]
[1729870509874,13.69927007,175.21,175.16,2.8554]
[1729870510077,2.855,175.19,175.16,2.8554]
[1729870511184,2.855,175.19,175.14,4.7]
[1729870511185,2.8548,175.21,175.14,4.7]
[1729870511385,4.7,175.24,175.14,4.7]
[1729870511684,2.8543,175.24,175.2,2.8548]
[1729870511883,4.7,175.26,175.17,13.69927007]
[1729870512184,2.8539,175.26,175.23,2.8543]
[1729870512486,18.39927007,175.29,175.19,4.7]
[1729870512679,2.8541,175.25,175.21,2.8546]
[1729870513077,2.8541,175.25,175.19,4.7]
[1729870513274,2.8533,175.3,175.24,2.8541]
[1729870513584,341.7,175.32,175.21,13.69927007]
[1729870513585,4.7,175.32,175.21,13.69927007]
[1729870513887,4.7,175.32,175.23,2.8542]
[1729870513888,2.8536,175.28,175.23,2.8542]
[1729870514182,13.69927007,175.31,175.2,1.2073]
[1729870514386,2.8536,175.28,175.23,2.8543]
[1729870514685,4.7,175.32,175.23,4.7]
[1729870514874,4.7,175.32,175.25,2.8539]
[1729870514875,2.8531,175.31,175.25,2.8539]
[1729870515079,2.8531,175.31,175.23,18.39927007]
[1729870515476,7.5529,175.32,175.28,2.8535]
[1729870515678,2.8529,175.32,175.28,2.8535]
[1729870515881,2.8529,175.32,175.23,18.39927007]
[1729870515882,18.39927007,175.35,175.23,18.39927007]
[1729870516984,2.8531,175.31,175.27,2.8536]
[1729870518481,2.8534,175.29,175.25,2.854]
[1729870518689,13.69927007,175.31,175.23,4.7]
[1729870518871,13.69927007,175.31,175.2,1.2073]
[1729870519074,13.69927007,175.29,175.21,4.7]
[1729870519477,13.69927007,175.29,175.2,1.2073]
[1729870519685,2.8541,175.25,175.21,2.8545]
[1729870519981,13.69927007,175.26,175.19,5.9792]
[1729870520277,13.69927007,175.26,175.2,2.8547]
[1729870520278,2.8542,175.24,175.2,2.8547]
[1729870520877,13.69927007,175.26,175.2,2.8547]
[1729870521078,2.8544,175.23,175.2,2.8547]
[1729870521379,13.69927007,175.28,175.19,14.97847007]
[1729870521579,2.8539,175.26,175.19,16.26677007]
[1729870521786,2.8539,175.26,175.21,2.8547]
[1729870522082,2.8539,175.26,175.19,16.26677007]
[1729870522281,2.8539,175.26,175.21,2.8547]
[1729870522584,2.8539,175.26,175.19,16.26677007]
[1729870523081,2.8539,175.26,175.22,2.8544]
[1729870523288,13.69927007,175.28,175.19,16.26677007]
[1729870523477,2.8536,175.28,175.24,2.8541]
[1729870523783,18.39927007,175.3,175.21,18.39927007]
[1729870523984,18.39927007,175.3,175.25,2.8539]
[1729870523985,2.8535,175.29,175.25,2.8539]
[1729870525876,2.8533,175.3,175.27,2.8537]
[1729870526174,13.69927007,175.39,175.28,13.69927007]
[1729870526372,18.39927007,175.39,175.3,13.69927007]
[1729870526576,2.8522,175.37,175.33,2.8526]
[1729870526872,4.7,175.4,175.3,13.69927007]
[1729870527076,2.852,175.38,175.34,2.8524]
[1729870527678,2.852,175.38,175.3,13.69927007]
[1729870527875,4.7,175.4,175.33,13.69927007]
[1729870528080,2.8518,175.39,175.33,13.69927007]
[1729870528283,4.7,175.4,175.34,2.8525]
[1729870529079,21.91740878,175.43,175.32,4.7]
[1729870529281,4.7,175.45,175.32,26.61740878]
[1729870529786,2.8514,175.41,175.37,2.8519]
[1729870529984,4.7,175.45,175.37,2.8519]
[1729870530481,21.91740878,175.4,175.31,2.8529]
[1729870530781,21.91740878,175.38,175.3,4.7]
[1729870531188,2.8525,175.35,175.31,2.853]
[1729870531688,2.8525,175.35,175.3,4.7]
[1729870532089,2.8525,175.35,175.31,2.853]
[1729870532788,2.8525,175.35,175.32,2.8528]
[1729870532982,2.8525,175.35,175.3,4.7]
[1729870532983,26.61740878,175.4,175.3,4.7]
[1729870533797,2.8521,175.37,175.33,2.8526]
[1729870533984,21.91740878,175.43,175.3,4.7]
[1729870534184,4.7,175.42,175.3,4.7]
[1729870534584,2.8519,175.38,175.34,2.8525]
[1729870536391,4.7,175.42,175.32,2.8528]
[1729870536392,2.8524,175.35,175.32,2.8528]
[1729870536691,21.91740878,175.41,175.32,2.8528]
[1729870536893,2.8523,175.36,175.32,2.8528]
[1729870537484,2.8523,175.36,175.3,4.7]
[1729870538694,2.8525,175.35,175.31,2.853]
[1729870538989,26.59740878,175.38,175.29,2.4775]
[1729870539185,2.8528,175.33,175.29,4.1184]
[1729870539391,26.59740878,175.38,175.23,1.1921]
[1729870539392,21.91740878,175.35,175.25,4.68]
[1729870539586,21.91740878,175.35,175.24,2.4108]
[1729870539787,21.91740878,175.35,175.25,4.68]
[1729870539990,4.68,175.34,175.25,4.68]
[1729870541194,2.8534,175.3,175.27,2.8537]
[1729870541492,4.68,175.34,175.24,7.0908]
[1729870542896,2.853,175.32,175.29,2.8534]
[1729870543486,4.68,175.34,175.24,7.0908]
[1729870543799,2.8531,175.31,175.28,2.8535]
[1729870544592,2.853,175.31,175.25,2.854]
[1729870544794,4.68,175.34,175.25,2.854]
[1729870545600,2.8535,175.29,175.26,2.8538]
[1729870550901,2.8251855,175.39,175.22,2.8544]
[1729870550902,2.854,175.26,175.22,2.8544]
[1729870551101,2.854,175.26,175.16,21.91740878]
[1729870551102,2.854,175.26,175.2,4.68]
[1729870551397,4.68,175.3,175.2,4.68]
[1729870551598,21.91740878,175.29,175.2,4.68]
[1729870551995,2.8541,175.25,175.21,2.8545]
[1729870552298,2.8541,175.25,175.19,5.9308]
[1729870552497,2.8541,175.25,175.21,2.8545]
[1729870553107,21.91740878,175.29,175.21,2.8545]
[1729870553403,2.8542,175.24,175.21,2.8545]
[1729870553997,21.91740878,175.29,175.19,1.2508]
[1729870554192,4.68,175.3,175.19,1.2508]
[1729870554193,21.91740878,175.26,175.19,1.2508]
[1729870554800,2.8545,175.23,175.19,4.1057]
[1729870555196,21.91740878,175.26,175.19,4.1057]
[1729870555504,2.8546,175.22,175.19,4.1057]
[1729870555907,2.8546,175.22,175.17,7.2126]
[1729870555908,26.61740878,175.26,175.17,2.5126]
[1729870556104,26.61740878,175.26,175.17,4.1419]
[1729870556105,2.8548,175.2,175.17,4.1419]
[1729870556301,26.61740878,175.26,175.17,4.1419]
[1729870556501,2.8544,175.23,175.2,2.8548]
[1729870556701,26.61740878,175.26,175.17,1.2867]
[1729870556702,4.7,175.26,175.17,1.2867]
[1729870557122,2.8543,175.24,175.2,2.8547]
[1729870557318,4.7,175.26,175.2,2.8547]
[1729870557521,2.8543,175.24,175.2,2.8547]
[1729870558219,2.8541,175.25,175.2,2.8547]
[1729870558412,4.7,175.26,175.2,2.8547]
[1729870558905,2.8543,175.24,175.2,2.8547]
[1729870559110,4.7,175.26,175.2,2.8547]
[1729870559312,26.61740878,175.26,175.19,2.8549]
[1729870559513,2.8546,175.22,175.19,2.8549]
[1729870559814,26.61740878,175.26,175.17,1.2867]
[1729870560013,2.8545,175.23,175.2,2.8548]
[1729870560214,26.61740878,175.26,175.17,1.2867]
[1729870560617,2.855,175.2,175.17,4.1419]
[1729870560818,26.61740878,175.26,175.17,1.2867]
[1729870561219,2.855,175.19,175.17,1.2867]
[1729870562019,2.8552,175.18,175.15,2.8555]
[1729870562816,13.71338607,175.22,175.13,1.2633]
[1729870563018,2.8555,175.16,175.13,2.8558]
[1729870563522,4.7,175.22,175.12,2.5198]
[1729870563523,18.41338607,175.22,175.12,2.5198]
[1729870563719,2.8548,175.2,175.17,2.8553]
[1729870563922,4.68,175.23,175.14,18.39338607]
[1729870564416,2.8554,175.17,175.13,1.2858]
[1729870564617,13.71338607,175.22,175.13,1.2858]
[1729870565011,2.8552,175.18,175.13,1.2858]
[1729870565221,13.71338607,175.19,175.12,2.5198]
[1729870565714,2.8553,175.17,175.13,2.8559]
[1729870566716,26.62688647,175.19,175.07,1.274]
[1729870566913,26.62688647,175.19,175.08,4.68]
[1729870567118,21.94688647,175.16,175.08,4.68]
[1729870567622,21.94688647,175.16,175.09,2.8566]
[1729870567821,26.62688647,175.19,175.09,2.8566]
[1729870568016,2.8561,175.13,175.09,2.8566]
[1729870568213,26.62688647,175.19,175.07,3.8531]
[1729870568418,21.94688647,175.16,175.07,2.5791]
[1729870568621,21.94688647,175.16,175.06,4.68]
[1729870568622,2.8566,175.1,175.06,4.68]
[1729870568916,21.94688647,175.13,175.08,2.8568]
[1729870569922,21.94688647,175.13,175.07,2.8569]
[1729870570319,2.8563,175.12,175.07,2.8569]
[1729870570519,21.94688647,175.13,175.07,2.8569]
[1729870571625,2.8565,175.11,175.07,2.8569]
[1729870571924,21.94688647,175.13,175.06,2.8571]
[1729870572221,2.8568,175.09,175.06,2.8571]
[1729870572424,21.94688647,175.13,175.04,4.68]
[1729870572627,21.94688647,175.1,175.02,2.4848]
[1729870572820,2.8573,175.05,175.02,2.4848]
[1729870573524,4.68,175.1,175.02,2.4848]
[1729870573721,2.8569,175.08,175.02,2.4848]
[1729870574118,2.857,175.07,175.04,2.8573]
[1729870574315,2.857,175.07,175.02,2.4848]
[1729870574824,2.857,175.07,175.03,2.8575]
[1729870575222,2.857,175.07,175.02,2.4848]
[1729870575426,2.857,175.07,175.04,2.8574]
[1729870575626,2.8571,175.06,175.02,2.4848]
[1729870575829,26.62688647,175.1,175.01,2.8579]
[1729870576327,26.62688647,175.1,175.03,2.8576]
[1729870577022,21.94688647,175.13,174.99,21.94688647]
[1729870577223,21.94688647,175.13,174.98,7.1716]
[1729870577224,4.68,175.12,175.01,21.94688647]
[1729870577424,26.62688647,175.12,175.03,2.8575]
[1729870577916,2.8566,175.1,175.03,2.8575]
[1729870578119,26.62688647,175.12,175.03,2.8575]
[1729870578627,2.8571,175.07,175.03,2.8575]
[1729870579017,2.8571,175.07,175.02,4.68]
[1729870579225,2.8571,175.07,175.04,2.8573]
[1729870579631,2.857,175.07,175.03,2.8574]
[1729870579935,26.62688647,175.12,175.02,4.68]
[1729870580133,4.7,175.11,175.02,4.68]
[1729870580518,4.7,175.11,175.03,2.8576]
[1729870581120,21.94688647,175.09,175.02,4.68]
[1729870581426,21.94688647,175.09,174.99,4.7]
[1729870581825,2.8571,175.06,175.02,2.8578]
[1729870582033,21.94688647,175.09,174.99,4.7]
[1729870582632,2.857,175.07,174.99,4.7]
[1729870583625,2.857,175.07,175.03,2.8575]
[1729870583826,2.8574,175.05,175.0,4.7]
[1729870584030,2.8574,175.05,174.98,2.4916]
[1729870584226,2.8574,175.05,175.01,2.8578]
[1729870584429,21.94688647,175.09,175.01,2.8578]
[1729870584625,21.94688647,175.04,174.95,2.8588]
[1729870584835,21.94688647,175.04,174.94,4.7]
[1729870585557,21.94688647,175.01,174.91,1.1763]
[1729870585757,1.1314,175.08,174.88,2.86]
[1729870585758,21.94688647,174.94,174.88,2.86]
[1729870586044,21.94688647,174.94,174.84,1.1914]
[1729870586248,4.7,174.94,174.84,1.1914]
[1729870586457,4.7,174.94,174.89,2.8598]
[1729870586643,18.42280815,174.95,174.89,2.8598]
[1729870587240,2.8592,174.94,174.89,2.8598]
[1729870587949,2.8592,174.93,174.89,2.8598]
[1729870588847,2.8592,174.93,174.88,2.86]
[1729870588848,16.58200815,174.93,174.88,2.86]
[1729870589552,13.72280815,174.93,174.84,5.8914]
[1729870589752,2.8598,174.9,174.86,2.8602]
[1729870590141,2.86,174.89,174.84,1.1914]
[1729870590345,13.72280815,174.88,174.84,1.1914]
[1729870591155,13.72280815,174.86,174.76,13.72280815]
[1729870591354,13.72280815,174.84,174.77,2.3939]
[1729870591558,13.72280815,174.86,174.77,2.3939]
[1729870591741,13.72280815,174.88,174.78,13.72280815]
[1729870592044,18.42280815,174.88,174.78,13.72280815]
[1729870592238,2.8602,174.87,174.78,13.72280815]
[1729870592838,18.42280815,174.88,174.78,13.72280815]
[1729870593035,2.8604,174.86,174.78,13.72280815]
[1729870593339,13.72280815,174.84,174.77,2.3939]
[1729870593836,13.72280815,174.81,174.73,1.1877]
[1729870594142,13.72280815,174.81,174.74,1.05162257]
[1729870594335,13.72280815,174.79,174.74,1.05162257]
[1729870594530,13.72280815,174.79,174.73,1.1877]
[1729870595640,350.72280815,174.89,174.73,1.1877]
[1729870595641,4.7,174.83,174.73,1.1877]
[1729870595841,2.861,174.83,174.78,2.8615]
[1729870596339,2.861,174.83,174.74,4.7]
[1729870596340,26.68733116,174.84,174.73,1.1877]
[1729870596741,2.8613,174.81,174.76,2.8619]
[1729870597532,26.68733116,174.84,174.76,2.8619]
[1729870597732,26.68733116,174.84,174.71,7.0891]
[1729870597733,21.98733116,174.82,174.71,2.3891]
[1729870597939,21.98733116,174.82,174.64,5.728]
[1729870597940,21.98733116,174.82,174.67,4.7]
[1729870598245,2.8618,174.78,174.73,2.8624]
[1729870598441,7.5618,174.78,174.73,2.8624]
[1729870598743,7.5618,174.78,174.67,4.7]
[1729870598936,7.5618,174.78,174.68,1.05194753]
[1729870599944,7.5618,174.78,174.71,2.8628]
[1729870600136,7.5618,174.78,174.67,4.7]
[1729870600340,7.5618,174.78,174.68,1.05198724]
[1729870600937,4.7,174.78,174.68,1.05198724]
[1729870601143,2.8615,174.8,174.75,2.8621]
[1729870601341,4.7,174.79,174.69,21.98733116]
[1729870601544,7.5615,174.79,174.72,2.8626]
[1729870601850,7.5615,174.79,174.69,21.98733116]
[1729870602052,7.5615,174.79,174.7,1.05190636]
[1729870602276,4.7,174.79,174.74,2.8622]
[1729870602484,2.8618,174.78,174.74,2.8622]
[1729870604160,4.7,174.79,174.69,21.98733116]
[1729870604366,0.1356,174.83,174.69,21.98733116]
[1729870604560,2.56451046,175.19,174.72,21.98733116]
[1729870604561,5.7171,174.98,174.72,21.98733116]
[1729870604878,4.7,174.89,174.87,2.8602]
[1729870605078,4.7,174.89,174.82,21.98733116]
[1729870605379,337.0,175.06,174.84,21.98733116]
[1729870605578,337.0,175.06,174.83,4.7]
[1729870605579,27.68733116,175.03,174.87,21.98733116]
[1729870605775,27.68733116,175.03,174.88,4.7]
[1729870605974,27.68733116,175.03,174.95,2.8589]
[1729870605975,2.8582,175.0,174.95,2.8589]
[1729870606174,27.68733116,175.03,174.9,21.98733116]
[1729870606378,1.0,175.03,174.9,21.98733116]
[1729870606577,22.12263116,175.06,174.9,21.98733116]
[1729870606578,7.5573,175.05,174.99,2.8581]
[1729870606877,7.5573,175.05,174.94,4.7]
[1729870607070,7.5573,175.05,174.94,7.1563]
[1729870607682,7.5573,175.05,174.95,21.98733116]
[1729870607683,4.7,175.05,174.95,21.98733116]
[1729870607876,4.7,175.07,174.98,21.98733116]
[1729870608084,4.7,175.09,174.98,26.68733116]
[1729870608273,4.7,175.12,175.01,21.98733116]
[1729870608474,4.7,175.12,175.02,4.7]
[1729870609185,2.8565,175.1,175.01,4.7]
[1729870609675,2.8565,175.1,175.03,2.8574]
[1729870610679,2.8565,175.1,175.03,2.8576]